[Event "Juniorallsvenskan 2019, Division 1 and 2"]
[Site "Molnlycke kulturhus, Biblioteksgatan 2, Molnlycke, Sweden"]
[Date "2019.11.24"]
[Round "4.1"]
[White "Sundin, Emanuel"]
[Black "Troberg Eskola, Love"]
[Result "1/2-1/2"]
[TimeControl "90 minutes + 30 seconds per move from move one"]
[WhiteFideId "1719173"]
[BlackFideId "1724185"]
[WhiteElo "2093"]
[BlackElo "2096"]

1. d4 {[%clk 01:28:55]} {[%emt 00:02:04]} d5 {[%clk 01:30:55]} {[%emt
00:00:06]} 2. c4 {[%clk 01:29:08]} {[%emt 00:00:17]} dxc4 {[%clk 01:31:18]}
{[%emt 00:00:06]} 3. e4 {[%clk 01:27:04]} {[%emt 00:02:34]} e5 {[%clk
01:31:38]} {[%emt 00:00:10]} 4. Nf3 {[%clk 01:27:19]} {[%emt 00:00:15]} exd4
{[%clk 01:32:03]} {[%emt 00:00:06]} 5. Bxc4 {[%clk 01:26:57]} {[%emt 00:00:52]}
Nc6 {[%clk 01:32:28]} {[%emt 00:00:05]} 6. O-O {[%clk 01:26:06]} {[%emt
00:01:21]} Be6 {[%clk 01:31:23]} {[%emt 00:01:34]} 7. Bxe6 {[%clk 01:24:43]}
{[%emt 00:01:54]} fxe6 {[%clk 01:31:47]} {[%emt 00:00:06]} 8. Qb3 {[%clk
01:24:09]} {[%emt 00:01:04]} Qd7 {[%clk 01:32:09]} {[%emt 00:00:07]} 9. Qxb7
{[%clk 01:23:54]} {[%emt 00:00:46]} Rb8 {[%clk 01:32:32]} {[%emt 00:00:06]} 10.
Qa6 {[%clk 01:24:04]} {[%emt 00:00:20]} Bd6 {[%clk 01:23:41]} {[%emt 00:09:21]}
11. a3 {[%clk 01:20:44]} {[%emt 00:03:51]} Rb6 {[%clk 01:22:07]} {[%emt
00:02:04]} 12. Qd3 {[%clk 01:18:43]} {[%emt 00:02:31]} Nf6 {[%clk 01:19:00]}
{[%emt 00:03:37]} 13. Nbd2 {[%clk 01:17:04]} {[%emt 00:02:08]} e5 {[%clk
01:15:26]} {[%emt 00:04:04]} 14. b4 {[%clk 01:12:44]} {[%emt 00:04:50]} O-O
{[%clk 01:12:02]} {[%emt 00:03:54]} 15. Nc4 {[%clk 01:09:27]} {[%emt 00:03:47]}
Rbb8 {[%clk 01:12:05]} {[%emt 00:00:27]} 16. b5 {[%clk 00:41:41]} {[%emt
00:28:17]} Nd8 {[%clk 01:09:11]} {[%emt 00:03:23]} 17. a4 {[%clk 00:36:42]}
{[%emt 00:05:29]} Re8 {[%clk 00:58:49]} {[%emt 00:10:51]} 18. Bd2 {[%clk
00:31:36]} {[%emt 00:05:37]} Qg4 {[%clk 00:49:39]} {[%emt 00:09:40]} 19. Rfe1
{[%clk 00:30:34]} {[%emt 00:01:33]} Nb7 {[%clk 00:45:22]} {[%emt 00:04:46]} 20.
Na5 {[%clk 00:24:34]} {[%emt 00:06:29]} Nc5 {[%clk 00:43:29]} {[%emt 00:02:24]}
21. Qc4+ {[%clk 00:24:56]} {[%emt 00:00:08]} Qe6 {[%clk 00:39:56]} {[%emt
00:04:03]} 22. Qxe6+ {[%clk 00:23:26]} {[%emt 00:02:00]} Rxe6 {[%clk 00:40:20]}
{[%emt 00:00:06]} 23. Nc6 {[%clk 00:22:49]} {[%emt 00:01:08]} Ra8 {[%clk
00:38:35]} {[%emt 00:02:15]} 24. Ng5 {[%clk 00:20:49]} {[%emt 00:02:29]} Ree8
{[%clk 00:38:45]} {[%emt 00:00:20]} 25. f3 {[%clk 00:21:13]} {[%emt 00:00:06]}
a6 {[%clk 00:31:49]} {[%emt 00:07:27]} 26. Nh3 {[%clk 00:16:05]} {[%emt
00:05:37]} Nb3 {[%clk 00:24:29]} {[%emt 00:07:50]} 27. Rad1 {[%clk 00:16:17]}
{[%emt 00:00:19]} axb5 {[%clk 00:22:34]} {[%emt 00:02:26]} 28. axb5 {[%clk
00:16:36]} {[%emt 00:00:10]} Ra4 {[%clk 00:20:59]} {[%emt 00:02:05]} 29. Nf2
{[%clk 00:15:16]} {[%emt 00:01:49]} Nd7 {[%clk 00:17:09]} {[%emt 00:04:21]} 30.
Nd3 {[%clk 00:14:52]} {[%emt 00:00:53]} Kf7 {[%clk 00:15:40]} {[%emt 00:01:59]}
31. Bg5 {[%clk 00:14:15]} {[%emt 00:01:08]} h6 {[%clk 00:15:46]} {[%emt
00:00:24]} 32. Bh4 {[%clk 00:13:55]} {[%emt 00:00:50]} g5 {[%clk 00:15:40]}
{[%emt 00:00:35]} 33. Bg3 {[%clk 00:13:52]} {[%emt 00:00:33]} Ke6 {[%clk
00:14:10]} {[%emt 00:02:00]} 34. Rb1 {[%clk 00:13:34]} {[%emt 00:00:49]} Nd2
{[%clk 00:13:41]} {[%emt 00:00:59]} 35. Rbd1 {[%clk 00:09:59]} {[%emt
00:04:05]} Nc4 {[%clk 00:12:50]} {[%emt 00:01:21]} 36. h4 {[%clk 00:10:05]}
{[%emt 00:00:24]} Rea8 {[%clk 00:12:01]} {[%emt 00:01:19]} 37. Rc1 {[%clk
00:08:22]} {[%emt 00:02:13]} Ndb6 {[%clk 00:11:12]} {[%emt 00:01:20]} 38. hxg5
{[%clk 00:07:35]} {[%emt 00:01:16]} hxg5 {[%clk 00:11:37]} {[%emt 00:00:05]} 39.
Bf2 {[%clk 00:07:35]} {[%emt 00:00:30]} Ra2 {[%clk 00:10:31]} {[%emt 00:01:36]}
40. Bxd4 {[%clk 00:05:01]} {[%emt 00:03:04]} exd4 {[%clk 00:10:43]} {[%emt
00:00:17]} 41. Nxd4+ {[%clk 00:05:30]} Kf7 {[%clk 00:09:44]} {[%emt 00:01:30]}
42. e5 {[%clk 00:05:20]} {[%emt 00:00:40]} Rd2 {[%clk 00:08:20]} {[%emt
00:01:53]} 43. exd6 {[%clk 00:03:39]} {[%emt 00:02:12]} Rxd3 {[%clk 00:08:40]}
{[%emt 00:00:10]} 44. Ne6 {[%clk 00:02:15]} {[%emt 00:01:53]} cxd6 {[%clk
00:07:54]} {[%emt 00:01:16]} 45. Nxg5+ {[%clk 00:02:40]} {[%emt 00:00:05]} Kg6
{[%clk 00:07:58]} {[%emt 00:00:26]} 46. Nh3 {[%clk 00:03:00]} {[%emt 00:00:11]}
Rd2 {[%clk 00:07:31]} {[%emt 00:00:56]} 47. Re6+ {[%clk 00:02:58]} {[%emt
00:00:32]} Kf5 {[%clk 00:07:19]} {[%emt 00:00:43]} 48. Rce1 {[%clk 00:03:17]}
{[%emt 00:00:10]} Ne5 {[%clk 00:07:24]} {[%emt 00:00:25]} 49. Rh6 {[%clk
00:03:07]} {[%emt 00:00:40]} Ng6 {[%clk 00:03:36]} {[%emt 00:04:18]} 50. Rh7
{[%clk 00:01:41]} {[%emt 00:01:57]} Kf6 {[%clk 00:03:00]} {[%emt 00:01:06]} 51.
Nf2 {[%clk 00:02:07]} {[%emt 00:00:04]} d5 {[%clk 00:02:00]} {[%emt 00:01:30]}
52. Ng4+ {[%clk 00:00:46]} {[%emt 00:01:50]} Kg5 {[%clk 00:02:08]} {[%emt
00:00:22]} 53. Re6 {[%clk 00:00:49]} {[%emt 00:00:27]} Ra1+ {[%clk 00:02:07]}
{[%emt 00:00:31]} 54. Kh2 {[%clk 00:01:10]} {[%emt 00:00:09]} Rxg2+ {[%clk
00:01:08]} {[%emt 00:01:29]} 55. Kxg2 {[%clk 00:01:33]} {[%emt 00:00:07]} Nf4+
{[%clk 00:01:34]} {[%emt 00:00:05]} 56. Kf2 {[%clk 00:01:14]} {[%emt 00:00:49]}
Nxe6 {[%clk 00:01:43]} {[%emt 00:00:21]} 57. Rh6 {[%clk 00:01:16]} {[%emt
00:00:28]} Ra2+ {[%clk 00:01:47]} {[%emt 00:00:26]} 58. Kf1 {[%clk 00:00:56]}
{[%emt 00:00:50]} Kf5 {[%clk 00:01:03]} {[%emt 00:01:13]} 59. Rf6+ {[%clk
00:01:11]} {[%emt 00:00:15]} Kg5 {[%clk 00:01:22]} {[%emt 00:00:11]} 60. Rxe6
{[%clk 00:01:35]} {[%emt 00:00:07]} Nc4 {[%clk 00:01:35]} {[%emt 00:00:17]} 61.
Nf2 {[%clk 00:01:02]} {[%emt 00:01:02]} Rb2 {[%clk 00:01:40]} {[%emt 00:00:26]}
62. Kg2 {[%clk 00:00:57]} {[%emt 00:00:35]} 1/2-1/2

[Event "Juniorallsvenskan 2019, Division 1 and 2"]
[Site "Molnlycke kulturhus, Biblioteksgatan 2, Molnlycke, Sweden"]
[Date "2019.11.24"]
[Round "4.2"]
[White "Torngren, Gustav"]
[Black "Nilsson, Joakim"]
[Result "1-0"]
[TimeControl "90 minutes + 30 seconds per move from move one"]
[WhiteTitle "CM"]
[BlackTitle "FM"]
[WhiteFideId "1728970"]
[BlackFideId "1723383"]
[WhiteElo "2247"]
[BlackElo "2288"]

1. e4 {[%clk 01:30:56]} {[%emt 00:00:03]} c5 {[%clk 01:28:08]} {[%emt
00:02:52]} 2. d3 {[%clk 01:31:15]} {[%emt 00:00:11]} Nc6 {[%clk 01:28:24]}
{[%emt 00:00:13]} 3. f4 {[%clk 01:31:34]} {[%emt 00:00:11]} d5 {[%clk
01:27:11]} {[%emt 00:01:43]} 4. exd5 {[%clk 01:30:51]} {[%emt 00:01:14]} Qxd5
{[%clk 01:27:21]} {[%emt 00:00:19]} 5. Nc3 {[%clk 01:31:11]} {[%emt 00:00:10]}
Qd7 {[%clk 01:27:02]} {[%emt 00:00:49]} 6. g3 {[%clk 01:24:29]} {[%emt
00:07:12]} Nf6 {[%clk 01:24:21]} {[%emt 00:03:11]} 7. Bg2 {[%clk 01:22:59]}
{[%emt 00:02:00]} e6 {[%clk 01:20:37]} {[%emt 00:04:14]} 8. Nf3 {[%clk
01:22:55]} {[%emt 00:00:34]} Be7 {[%clk 01:20:54]} {[%emt 00:00:13]} 9. b3
{[%clk 01:19:04]} {[%emt 00:04:21]} O-O {[%clk 01:20:27]} {[%emt 00:00:58]} 10.
Bb2 {[%clk 01:19:02]} {[%emt 00:00:32]} Nd5 {[%clk 01:18:13]} {[%emt 00:02:44]}
11. Nxd5 {[%clk 01:16:25]} {[%emt 00:03:07]} exd5 {[%clk 01:16:10]} {[%emt
00:02:32]} 12. O-O {[%clk 01:16:32]} {[%emt 00:00:23]} d4 {[%clk 01:11:57]}
{[%emt 00:04:43]} 13. Re1 {[%clk 01:14:09]} {[%emt 00:02:53]} Qc7 {[%clk
00:54:03]} {[%emt 00:18:23]} 14. Nd2 {[%clk 01:00:48]} {[%emt 00:13:51]} Be6
{[%clk 00:43:15]} {[%emt 00:11:19]} 15. Bxc6 {[%clk 00:46:49]} {[%emt
00:14:28]} bxc6 {[%clk 00:42:02]} {[%emt 00:01:43]} 16. a4 {[%clk 00:46:44]}
{[%emt 00:00:36]} Rfe8 {[%clk 00:38:04]} {[%emt 00:04:27]} 17. Ba3 {[%clk
00:46:21]} {[%emt 00:00:52]} Qd7 {[%clk 00:34:31]} {[%emt 00:04:03]} 18. Nc4
{[%clk 00:42:15]} {[%emt 00:04:37]} Bd5 {[%clk 00:31:44]} {[%emt 00:03:16]} 19.
Re2 {[%clk 00:31:16]} {[%emt 00:11:30]} Bf8 {[%clk 00:28:41]} {[%emt 00:03:33]}
20. Qf1 {[%clk 00:19:04]} {[%emt 00:12:43]} Rxe2 {[%emt 00:00:52]} 21. Qxe2
{[%emt 00:00:01]} Re8 {[%clk 00:28:28]} {[%emt 00:00:20]} 22. Qf1 {[%clk
00:20:03]} {[%emt 00:00:01]} Qe6 {[%clk 00:14:27]} {[%emt 00:14:30]} 23. Rd1
{[%clk 00:17:50]} {[%emt 00:02:43]} f6 {[%clk 00:12:33]} {[%emt 00:02:25]} 24.
Rd2 {[%clk 00:17:32]} {[%emt 00:00:48]} Qg4 {[%clk 00:12:10]} {[%emt 00:00:52]}
25. Rf2 {[%clk 00:13:23]} {[%emt 00:04:39]} Qe6 {[%clk 00:07:05]} {[%emt
00:05:34]} 26. Bc1 {[%clk 00:10:53]} {[%emt 00:03:00]} f5 {[%clk 00:03:54]}
{[%emt 00:03:42]} 27. Ne5 {[%clk 00:09:55]} {[%emt 00:01:28]} Bd6 {[%clk
00:03:01]} {[%emt 00:01:21]} 28. Re2 {[%clk 00:09:57]} {[%emt 00:00:29]} Qc8
{[%clk 00:03:07]} {[%emt 00:00:23]} 29. Nc4 {[%clk 00:09:47]} {[%emt 00:00:41]}
Bf8 {[%clk 00:02:22]} {[%emt 00:01:16]} 30. Qe1 {[%clk 00:09:58]} {[%emt
00:00:18]} Rxe2 {[%clk 00:02:31]} {[%emt 00:00:21]} 31. Qxe2 {[%clk 00:10:28]}
{[%emt 00:00:01]} Qd7 {[%clk 00:02:43]} {[%emt 00:00:17]} 32. Ba3 {[%clk
00:10:29]} {[%emt 00:00:29]} Qf7 {[%clk 00:02:50]} {[%emt 00:00:23]} 33. Kf2
{[%clk 00:08:10]} {[%emt 00:02:50]} Qg6 {[%clk 00:02:39]} {[%emt 00:00:40]} 34.
Ke1 {[%clk 00:06:48]} {[%emt 00:01:53]} Qf7 {[%clk 00:01:31]} {[%emt 00:01:37]}
35. Kd2 {[%clk 00:06:37]} {[%emt 00:00:41]} Be7 {[%clk 00:01:23]} {[%emt
00:00:39]} 36. Kc1 {[%clk 00:06:24]} {[%emt 00:00:43]} Bf8 {[%clk 00:01:05]}
{[%emt 00:00:48]} 37. Kb2 {[%clk 00:06:53]} {[%emt 00:00:02]} Qd7 {[%clk
00:01:14]} {[%emt 00:00:19]} 38. Qe5 {[%clk 00:06:47]} {[%emt 00:00:37]} Qc8
{[%clk 00:01:00]} {[%emt 00:00:43]} 39. Nd6 {[%clk 00:06:24]} {[%emt 00:00:53]}
Qe6 {[%clk 00:00:58]} {[%emt 00:00:33]} 40. Bxc5 {[%clk 00:06:09]} {[%emt
00:00:45]} Qd7 {[%clk 00:00:43]} {[%emt 00:00:44]} 41. Ba3 {[%clk 00:05:49]}
{[%emt 00:00:51]} g6 {[%clk 00:00:57]} {[%emt 00:00:17]} 42. Nc4 {[%clk
00:04:29]} {[%emt 00:01:50]} c5 {[%clk 00:00:42]} {[%emt 00:00:45]} 43. Qb8
{[%clk 00:04:18]} {[%emt 00:00:41]} Kg7 {[%clk 00:00:32]} {[%emt 00:00:40]} 44.
Ne5 {[%clk 00:03:59]} {[%emt 00:00:49]} Qe7 {[%clk 00:00:39]} {[%emt 00:00:22]}
45. Qc8 {[%clk 00:04:00]} {[%emt 00:00:27]} Be6 {[%clk 00:00:51]} {[%emt
00:00:20]} 46. Qc6 {[%clk 00:04:16]} {[%emt 00:00:13]} Kh6 {[%clk 00:00:52]}
{[%emt 00:00:30]} 47. Nf3 {[%clk 00:03:52]} {[%emt 00:00:54]} Bc8 {[%clk
00:00:37]} {[%emt 00:00:45]} 48. Ng5 {[%clk 00:03:45]} {[%emt 00:00:38]} Bb7
{[%clk 00:00:45]} {[%emt 00:00:22]} 49. Qe6 {[%clk 00:03:55]} {[%emt 00:00:19]}
Qc7 {[%clk 00:01:08]} {[%emt 00:00:06]} 50. Qg8 {[%clk 00:04:08]} {[%emt
00:00:19]} Bd6 {[%clk 00:01:11]} {[%emt 00:00:27]} 51. Nf7+ {[%clk 00:04:19]}
{[%emt 00:00:19]} Kh5 {[%clk 00:01:39]} {[%emt 00:00:03]} 52. h3 {[%clk
00:03:16]} {[%emt 00:01:33]} h6 {[%clk 00:01:46]} {[%emt 00:00:22]} 53. Nh8
{[%clk 00:03:35]} {[%emt 00:00:11]} 1-0

[Event "Juniorallsvenskan 2019, Division 1 and 2"]
[Site "Molnlycke kulturhus, Biblioteksgatan 2, Molnlycke, Sweden"]
[Date "2019.11.24"]
[Round "4.3"]
[White "Mitra, Akash"]
[Black "Olsson, William"]
[Result "0-1"]
[TimeControl "90 minutes + 30 seconds per move from move one"]
[WhiteFideId "1726714"]
[BlackFideId "1741721"]
[WhiteElo "1975"]
[BlackElo "2035"]

1. e4 {[%clk 01:24:53]} {[%emt 00:06:06]} c5 {[%clk 01:30:56]} {[%emt
00:00:05]} 2. Nf3 {[%clk 01:25:20]} {[%emt 00:00:02]} d6 {[%clk 01:31:20]}
{[%emt 00:00:06]} 3. d4 {[%clk 01:25:48]} {[%emt 00:00:03]} cxd4 {[%clk
01:31:46]} {[%emt 00:00:04]} 4. Nxd4 {[%clk 01:26:15]} {[%emt 00:00:03]} Nf6
{[%clk 01:32:10]} {[%emt 00:00:06]} 5. Nc3 {[%clk 01:26:42]} {[%emt 00:00:03]}
g6 {[%clk 01:32:34]} {[%emt 00:00:05]} 6. Be3 {[%clk 01:27:09]} {[%emt
00:00:03]} Bg7 {[%clk 01:33:00]} {[%emt 00:00:05]} 7. f3 {[%clk 01:27:33]}
{[%emt 00:00:06]} O-O {[%clk 01:33:25]} {[%emt 00:00:04]} 8. Qd2 {[%clk
01:27:57]} {[%emt 00:00:06]} Nc6 {[%clk 01:33:52]} {[%emt 00:00:03]} 9. O-O-O
{[%clk 01:28:18]} {[%emt 00:00:09]} d5 {[%clk 01:34:18]} {[%emt 00:00:04]} 10.
Qe1 {[%clk 01:28:45]} {[%emt 00:00:03]} e5 {[%clk 01:34:43]} {[%emt 00:00:06]}
11. Nxc6 {[%clk 01:29:09]} {[%emt 00:00:06]} bxc6 {[%clk 01:35:09]} {[%emt
00:00:04]} 12. exd5 {[%clk 01:29:34]} {[%emt 00:00:05]} Nxd5 {[%clk 01:35:32]}
{[%emt 00:00:07]} 13. Bc4 {[%clk 01:29:43]} {[%emt 00:00:21]} Be6 {[%clk
01:35:14]} {[%emt 00:00:47]} 14. h4 {[%clk 01:25:07]} {[%emt 00:05:06]} h6
{[%clk 01:32:50]} {[%emt 00:02:53]} 15. g4 {[%clk 01:12:55]} {[%emt 00:12:42]}
Qb8 {[%clk 01:23:39]} {[%emt 00:09:42]} 16. Nxd5 {[%clk 01:02:01]} {[%emt
00:11:23]} cxd5 {[%clk 01:24:04]} {[%emt 00:00:06]} 17. Bb3 {[%clk 00:59:07]}
{[%emt 00:03:24]} Rd8 {[%clk 01:22:02]} {[%emt 00:02:32]} 18. Qa5 {[%clk
00:50:13]} {[%emt 00:09:23]} Qb7 {[%clk 01:19:21]} {[%emt 00:03:12]} 19. Rd3
{[%clk 00:44:24]} {[%emt 00:06:19]} Rd6 {[%clk 01:06:27]} {[%emt 00:13:24]} 20.
Rhd1 {[%clk 00:30:45]} {[%emt 00:14:08]} d4 {[%clk 01:05:04]} {[%emt 00:01:54]}
21. Bxe6 {[%clk 00:26:03]} {[%emt 00:05:11]} Rxe6 {[%clk 01:04:13]} {[%emt
00:01:23]} 22. Rb3 {[%clk 00:22:18]} {[%emt 00:04:15]} Rb6 {[%clk 01:04:20]}
{[%emt 00:00:22]} 23. Bd2 {[%clk 00:17:39]} {[%emt 00:05:09]} Rxb3 {[%clk
01:04:28]} {[%emt 00:00:23]} 24. axb3 {[%clk 00:17:59]} {[%emt 00:00:09]} Qxf3
{[%clk 01:04:50]} {[%emt 00:00:08]} 25. c4 {[%clk 00:17:56]} {[%emt 00:00:34]}
Qxb3 {[%clk 01:04:18]} {[%emt 00:01:02]} 26. Qb4 {[%clk 00:18:09]} {[%emt
00:00:17]} Qa2 {[%clk 00:59:27]} {[%emt 00:05:21]} 27. Kc2 {[%clk 00:16:50]}
{[%emt 00:01:49]} Rc8 {[%clk 00:59:38]} {[%emt 00:00:18]} 28. Kd3 {[%clk
00:15:51]} {[%emt 00:01:29]} Bf8 {[%clk 00:59:18]} {[%emt 00:00:50]} 29. Qb5
{[%clk 00:15:48]} {[%emt 00:00:33]} Rc5 {[%clk 00:59:39]} {[%emt 00:00:09]} 30.
Qb4 {[%clk 00:15:47]} {[%emt 00:00:31]} a5 {[%clk 00:59:32]} {[%emt 00:00:37]}
31. Qa3 {[%clk 00:15:17]} {[%emt 00:00:59]} Qxc4+ {[%clk 00:59:54]} {[%emt
00:00:09]} 32. Ke4 {[%clk 00:15:43]} {[%emt 00:00:04]} Qd5+ {[%clk 01:00:07]}
{[%emt 00:00:17]} 33. Kd3 {[%clk 00:16:06]} {[%emt 00:00:07]} Qf3+ {[%clk
01:00:33]} {[%emt 00:00:04]} 34. Be3 {[%clk 00:16:28]} {[%emt 00:00:08]} Qxe3#
{[%clk 01:00:58]} {[%emt 00:00:04]} 0-1

[Event "Juniorallsvenskan 2019, Division 1 and 2"]
[Site "Molnlycke kulturhus, Biblioteksgatan 2, Molnlycke, Sweden"]
[Date "2019.11.24"]
[Round "4.4"]
[White "Aira, Leonardo"]
[Black "Hall, Alexander"]
[Result "1-0"]
[TimeControl "90 minutes + 30 seconds per move from move one"]
[WhiteFideId "1721097"]
[BlackFideId "1738933"]
[WhiteElo "1955"]
[BlackElo "1887"]

1. e4 {[%clk 01:30:42]} {[%emt 00:00:17]} c5 {[%clk 01:30:55]} {[%emt
00:00:06]} 2. d4 {[%clk 01:30:35]} {[%emt 00:00:35]} cxd4 {[%clk 01:31:22]}
{[%emt 00:00:05]} 3. c3 {[%clk 01:30:57]} {[%emt 00:00:07]} d3 {[%clk
01:31:46]} {[%emt 00:00:06]} 4. Bxd3 {[%clk 01:31:22]} {[%emt 00:00:05]} g6
{[%clk 01:32:11]} {[%emt 00:00:06]} 5. f4 {[%clk 01:31:19]} {[%emt 00:00:32]}
Bg7 {[%clk 01:31:25]} {[%emt 00:01:16]} 6. Be3 {[%clk 01:30:44]} {[%emt
00:01:05]} Nc6 {[%clk 01:25:07]} {[%emt 00:06:47]} 7. Nf3 {[%clk 01:28:11]}
{[%emt 00:03:04]} Nf6 {[%clk 01:19:18]} {[%emt 00:06:19]} 8. h3 {[%clk
01:26:03]} {[%emt 00:02:38]} Qc7 {[%clk 01:03:10]} {[%emt 00:16:37]} 9. O-O
{[%clk 01:21:12]} {[%emt 00:05:21]} O-O {[%clk 01:00:28]} {[%emt 00:03:12]} 10.
Qd2 {[%clk 01:09:25]} {[%emt 00:12:17]} d6 {[%clk 00:42:45]} {[%emt 00:18:13]}
11. c4 {[%clk 01:06:43]} {[%emt 00:03:13]} e5 {[%clk 00:31:15]} {[%emt
00:12:00]} 12. Nc3 {[%clk 01:00:39]} {[%emt 00:06:33]} Rd8 {[%clk 00:26:48]}
{[%emt 00:04:58]} 13. Nd5 {[%clk 00:54:26]} {[%emt 00:06:42]} Nxd5 {[%clk
00:27:07]} {[%emt 00:00:12]} 14. cxd5 {[%clk 00:54:49]} {[%emt 00:00:06]} Nd4
{[%clk 00:26:30]} {[%emt 00:01:06]} 15. Bxd4 {[%clk 00:41:13]} {[%emt
00:14:07]} exd4 {[%clk 00:26:58]} {[%emt 00:00:03]} 16. Qf2 {[%clk 00:35:35]}
{[%emt 00:06:07]} Qb6 {[%clk 00:22:07]} {[%emt 00:05:21]} 17. Rfc1 {[%clk
00:32:39]} {[%emt 00:03:26]} Bd7 {[%clk 00:21:19]} {[%emt 00:01:18]} 18. Rc4
{[%clk 00:31:04]} {[%emt 00:02:06]} Rac8 {[%clk 00:20:04]} {[%emt 00:01:46]} 19.
Rac1 {[%clk 00:31:19]} {[%emt 00:00:15]} a5 {[%clk 00:18:11]} {[%emt 00:02:22]}
20. Rxc8 {[%clk 00:29:56]} {[%emt 00:01:54]} Rxc8 {[%clk 00:18:32]} {[%emt
00:00:10]} 21. Rxc8+ {[%clk 00:30:18]} {[%emt 00:00:07]} Bxc8 {[%clk 00:19:00]}
{[%emt 00:00:02]} 22. Qc2 {[%clk 00:29:37]} {[%emt 00:01:10]} Bd7 {[%clk
00:17:32]} {[%emt 00:01:53]} 23. e5 {[%emt 00:09:26]} Bh6 {[%emt 00:05:53]} 24.
Qb3 {[%emt 00:00:48]} Qxb3 {[%emt 00:00:11]} 25. axb3 {[%emt 00:00:11]} Bxf4
{[%emt 00:00:51]} 26. exd6 {[%clk 00:19:41]} {[%emt 00:00:06]} Bxd6 {[%clk
00:13:47]} {[%emt 00:00:20]} 27. Kf1 {[%clk 00:18:19]} {[%emt 00:01:52]} Bc5
{[%clk 00:13:25]} {[%emt 00:00:51]} 28. Ne5 {[%clk 00:18:19]} {[%emt 00:00:32]}
Be8 {[%clk 00:12:23]} {[%emt 00:01:22]} 29. Ke2 {[%clk 00:13:11]} {[%emt
00:05:48]} f6 {[%clk 00:10:24]} {[%emt 00:02:29]} 30. Nc4 {[%clk 00:11:50]}
{[%emt 00:01:52]} b6 {[%clk 00:10:37]} {[%emt 00:00:17]} 31. Nd2 {[%clk
00:08:45]} {[%emt 00:03:34]} f5 {[%clk 00:06:02]} {[%emt 00:05:06]} 32. g4
{[%clk 00:07:52]} {[%emt 00:01:23]} fxg4 {[%clk 00:06:24]} {[%emt 00:00:07]} 33.
hxg4 {[%clk 00:08:17]} {[%emt 00:00:06]} Kf7 {[%clk 00:05:12]} {[%emt
00:01:37]} 34. g5 {[%clk 00:07:34]} {[%emt 00:01:18]} Bd7 {[%clk 00:04:37]}
{[%emt 00:01:02]} 35. Kf3 {[%clk 00:07:09]} {[%emt 00:00:58]} Ke7 {[%clk
00:01:02]} {[%emt 00:04:04]} 36. Nc4 {[%clk 00:04:00]} {[%emt 00:03:40]} a4
{[%clk 00:01:15]} {[%emt 00:00:18]} 37. bxa4 {[%clk 00:03:38]} {[%emt
00:00:52]} Bxa4 {[%clk 00:01:44]} {[%emt 00:00:01]} 38. Ke4 {[%clk 00:01:37]}
{[%emt 00:02:31]} Bb5 {[%clk 00:01:26]} {[%emt 00:00:47]} 39. Ne5 {[%clk
00:01:40]} {[%emt 00:00:28]} Bxd3+ {[%clk 00:01:45]} {[%emt 00:00:12]} 40. Nxd3
{[%clk 00:02:04]} {[%emt 00:00:06]} Bb4 {[%clk 00:01:01]} {[%emt 00:01:09]} 41.
Nxb4 {[%clk 00:02:26]} {[%emt 00:00:13]} Kd6 {[%clk 00:00:35]} {[%emt
00:00:56]} 42. Kxd4 {[%clk 00:02:46]} {[%emt 00:00:10]} b5 {[%clk 00:00:54]}
{[%emt 00:00:11]} 43. Nd3 {[%clk 00:03:02]} {[%emt 00:00:14]} b4 {[%clk
00:01:12]} {[%emt 00:00:11]} 44. Nxb4 {[%clk 00:03:27]} {[%emt 00:00:06]} Kxd5+
{[%emt 00:00:14]} 45. Ke4+ 1-0